bitfinex-derivatives/quotes_ETHF0:USTF0_20251226
["timestamp","ask_amount","ask_price","bid_price","bid_amount"]
[1766760816403,0.00511953,2931.5,2930.0,4.37642458]
[1766760816610,0.00511953,2931.5,2929.6,4.37642458]
[1766760817003,0.00940937,2931.5,2929.8,4.37642458]
[1766760817307,0.00940937,2931.5,2930.4,0.00511953]
[1766760818414,0.17059,2933.0,2930.5,4.4790085]
[1766760818808,0.17055,2933.7,2930.8,0.17071]
[1766760819112,0.17055,2933.7,2931.0,0.1707]
[1766760819514,0.00251719,2933.7,2932.1,0.00511953]
[1766760819720,0.00251719,2933.7,2932.1,0.00796845]
[1766760820221,0.00251719,2933.7,2932.2,4.48031318]
[1766760820819,0.00251719,2933.7,2932.1,0.00796845]
[1766760821119,0.00251719,2933.7,2932.2,4.45881802]
[1766760821621,0.00511953,2933.2,2932.2,4.45881802]
[1766760821824,0.00511953,2933.2,2932.1,0.00796845]
[1766760823925,0.17569953,2933.2,2932.1,0.00796845]
[1766760824122,0.17059,2933.1,2932.1,0.00796845]
[1766760824719,0.1706,2932.9,2930.4,0.143]
[1766760824917,0.00511953,2933.2,2930.3,0.17075]
[1766760825119,0.17058,2933.2,2930.5,0.17073]
[1766760825327,0.17058,2933.2,2930.1,5.358]
[1766760825519,0.17058,2933.2,2930.9,4.41574112]
[1766760825723,0.00511953,2932.3,2931.8,0.00511953]
[1766760827219,0.00511953,2932.3,2930.9,0.00278508]
[1766760828128,0.17064,2932.1,2931.3,0.00511953]
[1766760828423,0.17066,2931.9,2930.9,0.00278508]
[1766760828630,0.17066,2931.8,2930.9,0.00278508]
[1766760828835,0.17066,2931.8,2929.3,0.1708]
[1766760828836,0.17067,2931.6,2929.2,1.22735666]
[1766760829222,0.17067,2931.6,2929.4,4.4907492]
[1766760829423,0.17067,2931.6,2930.1,0.00511953]
[1766760829728,0.17067,2931.6,2930.1,0.00845944]
[1766760829729,0.1738274,2931.6,2930.1,0.00845944]
[1766760830319,0.00511953,2931.1,2930.1,0.00845944]
[1766760832130,0.1738274,2931.6,2930.1,0.00845944]
[1766760833131,0.00511953,2931.1,2930.1,0.00845944]
[1766760835630,0.17581953,2931.1,2930.1,0.00845944]
[1766760835928,0.17581953,2931.1,2928.5,1.148]
[1766760835929,0.17071,2930.9,2928.5,1.148]
[1766760836328,0.17071,2930.9,2928.6,4.34989167]
[1766760836727,0.01042841,2929.8,2928.6,4.34989167]
[1766760836925,0.00511953,2929.5,2928.9,0.00511953]
[1766760837224,0.17071,2930.9,2929.0,4.39405226]
[1766760838024,0.00511953,2930.2,2929.0,4.39405226]
[1766760839632,1.953e-05,2930.2,2929.0,4.39405226]
[1766760839935,1.953e-05,2930.2,2928.9,0.00511953]
[1766760840229,1.953e-05,2930.2,2929.0,4.3487119]
[1766760840436,0.00278775,2930.9,2929.3,0.1708]
[1766760840632,0.17068,2931.5,2929.3,0.1708]
[1766760840931,0.17069,2931.4,2929.0,8.27052103]
[1766760841131,0.17065,2932.0,2929.5,0.17079]
[1766760841331,40.8,2932.7,2929.5,0.17079]
[1766760841532,0.00511953,2931.0,2930.5,0.00511953]
[1766760841745,0.17064,2932.2,2930.5,0.00511953]
[1766760842435,0.00337861,2932.7,2930.5,0.00511953]
[1766760842734,0.17055,2933.6,2931.3,0.17069]
[1766760842928,0.17055,2933.6,2930.6,4.45555452]
[1766760842929,0.17057,2933.4,2930.6,11.50544732]
[1766760843129,0.17057,2933.4,2932.2,0.00511953]
[1766760843739,0.1706,2932.9,2930.8,8.16409618]
[1766760844040,8.74174999,2933.4,2930.2,5.352]
[1766760844242,3.414,2933.2,2930.2,5.352]
[1766760844444,0.17062,2932.4,2930.5,4.49252963]
[1766760844737,0.00511953,2931.7,2931.2,1.953e-05]
[1766760845043,6.00511953,2931.7,2930.5,0.00402946]
[1766760845341,0.00511953,2931.7,2930.5,0.00402946]
[1766760845924,0.00511953,2931.7,2930.8,1.953e-05]
[1766760846535,0.00511953,2931.7,2929.2,5.353]
[1766760846726,0.00511953,2931.7,2928.5,0.17085]
[1766760847040,0.00511953,2931.7,2929.3,4.52421953]
[1766760847233,0.00511953,2931.7,2929.3,0.1708]
[1766760847436,0.00511953,2931.7,2929.4,4.35341953]
[1766760847738,0.00511953,2931.7,2930.3,0.00511953]
[1766760848638,0.00511953,2931.7,2930.5,0.00404899]
[1766760849733,0.00511953,2931.7,2930.3,0.00511953]
[1766760850340,0.00511953,2931.7,2930.6,0.00404899]
[1766760850745,0.00511953,2931.7,2930.7,0.00404899]
[1766760851043,0.00511953,2931.7,2930.3,0.00511953]
[1766760851241,0.1706,2932.8,2930.8,4.43079371]
[1766760851745,0.1706,2932.8,2930.5,4.43079371]
[1766760852135,0.00374999,2933.4,2930.4,0.00404899]
[1766760852344,0.00374999,2933.4,2930.3,0.00511953]
[1766760852345,0.00511953,2931.9,2930.5,4.47794477]
[1766760852540,0.00511953,2931.9,2930.3,0.00511953]
[1766760853242,0.17067,2931.6,2930.3,0.00511953]
[1766760853742,0.00511953,2931.9,2930.3,0.00511953]
[1766760855637,0.17576953,2931.9,2930.3,0.00511953]
[1766760856539,0.17576953,2931.9,2930.5,0.00404899]
[1766760856840,0.17067,2931.7,2930.3,0.00511953]
[1766760857339,0.17067,2931.7,2930.6,0.00404899]
[1766760857548,0.17067,2931.7,2930.4,4.44285908]
[1766760857840,0.17067,2931.7,2930.3,0.00916852]
[1766760858038,0.17067,2931.7,2930.3,0.00511953]
[1766760858238,0.17068,2931.5,2930.3,0.00511953]
[1766760859230,0.00511953,2931.9,2930.3,0.00916852]
[1766760860544,0.00511953,2931.9,2930.3,0.00511953]
[1766760860736,0.00511953,2931.9,2929.4,0.00410957]
[1766760860939,0.17074,2930.5,2927.8,0.17089]
[1766760861340,0.17074,2930.4,2928.3,0.00404899]
[1766760861539,40.8,2930.9,2928.3,0.00404899]
[1766760861741,44.214,2930.9,2928.6,4.51201305]
[1766760861945,0.00511953,2929.9,2928.6,4.51630697]
[1766760862145,0.00511953,2929.9,2928.6,0.00429392]
[1766760862339,0.17078,2929.8,2928.7,0.00404899]
[1766760862740,0.17078,2929.8,2928.6,0.00429392]
[1766760863037,0.17078,2929.8,2928.9,0.00511953]
[1766760863243,0.17078,2929.8,2928.9,0.00916852]
[1766760863455,0.00511953,2929.9,2928.9,0.00916852]
[1766760863748,0.00511953,2929.9,2928.6,0.00429392]
[1766760864048,0.17079,2929.5,2927.4,5.345]
[1766760864242,0.1708,2929.4,2927.8,0.00404899]
[1766760864745,0.00511953,2929.9,2928.3,0.00511953]
[1766760864949,0.00511953,2929.9,2928.3,0.00774392]
[1766760865547,0.00511953,2929.9,2928.4,4.48698268]
[1766760866252,0.00511953,2929.9,2928.4,0.00404899]
[1766760866456,0.00511953,2929.9,2928.3,0.00774392]
[1766760866838,0.17082,2929.1,2927.4,5.345]
[1766760867039,1.163,2929.6,2927.6,0.00404899]
[1766760867350,1.163,2929.6,2926.3,0.17098]
[1766760867351,1.163,2929.6,2926.4,4.33921616]
[1766760867542,0.17084,2928.7,2926.6,0.00404899]
[1766760867947,0.00511953,2927.9,2927.4,0.00341309]
[1766760868154,1.953e-05,2927.9,2927.4,0.00341309]
[1766760869247,1.953e-05,2927.9,2926.6,0.00796841]
[1766760869248,1.953e-05,2927.9,2926.6,0.00391942]
[1766760869544,1.953e-05,2927.9,2926.0,0.1]
[1766760869545,1.953e-05,2927.9,2926.7,0.00404899]
[1766760870144,1.953e-05,2927.9,2926.7,4.37995634]
[1766760870349,1.953e-05,2927.9,2927.0,0.0051]
[1766760872150,5.33101953,2927.9,2927.0,0.00914899]
[1766760872447,1.953e-05,2927.9,2927.0,0.00914899]
[1766760873148,5.50289,2927.8,2926.7,0.00286073]
[1766760873941,0.1709,2927.7,2926.7,0.00286073]
[1766760874142,5.332,2927.8,2926.0,0.1]
[1766760874143,0.17092,2927.4,2926.0,0.1]
[1766760874343,0.17092,2927.3,2926.0,0.1]
[1766760874550,5.332,2927.8,2926.0,0.1]
[1766760875155,0.17089,2927.8,2926.0,0.10312245]
[1766760875356,5.332,2927.7,2926.0,0.10312245]
[1766760875759,0.1709,2927.6,2926.0,0.10312245]
[1766760876056,5.336,2927.5,2926.0,0.10312245]
[1766760876656,5.343,2927.4,2926.0,0.10312245]
[1766760876849,0.17092,2927.3,2926.0,0.10312245]
[1766760877048,0.17093,2927.2,2926.0,0.10312245]
[1766760877446,5.349,2927.1,2926.0,0.10312245]
[1766760877961,40.97089,2927.8,2926.0,0.10312245]
[1766760878258,5.35,2927.7,2926.0,0.10312245]
[1766760878455,5.353,2927.6,2926.0,0.10312245]
[1766760878851,0.17091,2927.4,2926.0,0.10312245]
[1766760879250,0.17092,2927.3,2926.0,0.10312245]
[1766760879455,5.363,2927.2,2926.0,0.10312245]
[1766760879649,0.17092,2927.3,2926.0,0.10312245]
[1766760879856,5.365,2927.1,2926.0,0.10312245]
[1766760880057,5.367,2927.0,2926.0,0.10312245]
[1766760880258,1.953e-05,2927.9,2926.0,0.10312245]
[1766760880562,0.17093,2927.2,2926.0,0.10312245]
[1766760881062,5.367,2927.1,2926.0,0.10312245]
[1766760881250,5.368,2927.0,2926.0,0.10312245]
[1766760882057,0.17093,2927.2,2926.0,0.10312245]
[1766760882260,5.371,2926.9,2926.0,0.10312245]
[1766760882553,5.371,2926.9,2926.0,0.00312245]
[1766760883159,40.8,2927.8,2926.0,0.00312245]
[1766760883358,44.214,2927.8,2926.0,0.00312245]
[1766760883558,0.17096,2926.7,2924.4,0.17109]
[1766760883763,5.373,2926.6,2924.4,0.17109]
[1766760883964,5.373,2926.6,2924.5,4.41243215]
[1766760884153,0.17098,2926.4,2924.5,4.41243215]
[1766760884348,5.373,2926.6,2924.5,4.41243215]
[1766760884555,0.17101,2925.8,2924.5,0.00333923]
[1766760884761,0.00511953,2925.4,2924.9,0.00511952]
[1766760884962,5.375,2925.8,2924.9,0.00511952]
[1766760885451,0.17098,2926.3,2925.0,4.38740146]
[1766760885651,0.00434187,2926.4,2925.0,4.38740146]
[1766760887056,0.00511953,2926.0,2925.0,4.38740146]
[1766760887361,0.00511953,2926.0,2924.9,0.00511952]
[1766760887763,0.00434187,2926.4,2925.0,4.46449039]
[1766760888256,0.00434187,2926.4,2924.9,0.00511952]
[1766760888962,0.00511953,2925.9,2924.9,0.00511952]
[1766760889563,0.00434187,2926.4,2925.0,4.43379657]
[1766760890157,0.00434187,2926.4,2924.9,0.00511952]
[1766760890567,0.00511953,2925.9,2924.9,0.00511952]
[1766760891961,0.00511953,2925.9,2924.5,0.00333923]
[1766760892266,5.373,2925.8,2924.5,0.00333923]
[1766760892459,5.373,2925.7,2924.5,0.00333923]
[1766760892657,6.68011403,2925.7,2924.0,0.24850739]
[1766760892853,0.86343798,2925.6,2924.0,0.24850739]
[1766760893054,0.17105,2925.1,2923.0,0.01]
[1766760893266,0.86323872,2925.0,2923.0,0.01]
[1766760893463,6.23523872,2924.9,2923.0,0.01]
[1766760893758,6.23523872,2924.8,2923.0,0.01347568]
[1766760893966,40.8,2925.0,2923.0,0.01347568]
[1766760894263,0.00512847,2924.2,2923.0,0.01347568]
[1766760894466,0.00901361,2924.2,2923.0,0.01347568]
[1766760894866,0.00901361,2924.2,2922.3,0.42208957]
[1766760894867,5.55111,2924.1,2922.3,0.25087957]
[1766760895165,0.17112,2924.0,2922.3,0.25087957]
[1766760895362,5.38,2923.9,2922.3,0.25087957]
[1766760895566,5.38,2923.8,2922.3,0.25087957]
[1766760895764,1.30711403,2923.7,2922.3,0.25087957]
[1766760896071,1.30711403,2923.7,2922.3,0.25417758]
[1766760896261,1.03150474,2923.6,2921.2,1.30711403]
[1766760896462,0.00512847,2922.7,2922.1,0.00512246]
[1766760896666,2.847e-05,2922.7,2922.1,0.00512246]
[1766760897167,2.847e-05,2922.7,2922.1,0.00909242]
[1766760897359,0.17111,2924.1,2922.2,4.53714037]
[1766760897561,5.38,2924.0,2922.2,4.53714037]
[1766760897757,0.17111,2924.1,2922.1,0.00909242]
[1766760897968,5.382,2924.0,2922.1,0.00909242]
[1766760898157,0.17111,2924.1,2922.1,0.00909242]
[1766760898361,0.00512847,2923.4,2922.1,0.00909242]
[1766760898572,2.847e-05,2923.4,2922.1,0.00909242]
[1766760898870,2.847e-05,2923.4,2922.2,4.4432808]
[1766760901263,2.847e-05,2923.4,2922.1,0.00909242]
[1766760901776,0.17116,2923.2,2922.1,0.00909242]
[1766760901967,0.17117,2923.1,2920.4,0.17132]
[1766760902169,2.847e-05,2923.4,2921.2,1.30711403]
[1766760902371,2.847e-05,2923.4,2920.6,9.69873996]
[1766760902577,5.39002847,2923.4,2921.3,8.39162593]
[1766760902765,5.39002847,2923.4,2920.6,1.30711403]
[1766760903066,6.6971425,2923.4,2921.7,0.00512847]
[1766760903367,1.47829403,2922.9,2921.7,0.00512847]
[1766760903564,0.85760471,2923.3,2920.7,4.37759175]
[1766760903565,1.30711403,2922.3,2920.7,4.37759175]
[1766760903764,1.30711403,2922.0,2920.6,0.00268495]
[1766760903966,5.392,2921.9,2920.6,0.00268495]
[1766760904367,6.69911403,2921.8,2920.6,0.00268495]
[1766760904565,40.8,2921.8,2920.6,0.00268495]
[1766760904874,0.00512847,2921.5,2918.9,1.30711403]
[1766760905170,1.30711403,2921.2,2919.1,4.47864226]
[1766760905366,0.00512847,2921.5,2919.1,4.47864226]
[1766760905566,0.00512847,2921.5,2918.9,1.30711403]
[1766760905766,0.00512847,2921.5,2918.9,1.31112148]
[1766760906171,1.30711403,2921.3,2919.2,5.97573183]
[1766760906471,1.30711403,2921.3,2919.0,8.42197862]
[1766760906472,0.17638847,2921.5,2918.9,0.00400745]
[1766760906672,0.17128,2921.3,2918.9,0.00400745]
[1766760906869,5.396,2921.4,2919.0,4.52568202]
[1766760907061,1.30711403,2920.4,2918.9,0.00400745]
[1766760907263,0.0051376,2919.9,2918.9,0.00400745]
[1766760907462,0.1713,2920.8,2919.1,0.0051376]
[1766760907669,5.397,2921.0,2919.1,0.0051376]
[1766760907874,5.397,2921.0,2919.2,4.37252377]
[1766760908074,0.17126,2921.6,2919.1,0.0051376]
[1766760908273,0.17126,2921.6,2919.2,3.56807552]
[1766760908468,0.0051376,2920.7,2919.3,4.48834213]
[1766760909269,6.70411403,2920.6,2919.3,4.48834213]
[1766760909473,1.30711403,2920.6,2919.3,4.48834213]
[1766760909673,0.0051376,2920.7,2919.3,4.48834213]
[1766760910367,5.4021376,2920.7,2919.1,0.0051376]
[1766760910575,0.0051376,2920.7,2919.1,0.0051376]
[1766760911762,5.397,2920.6,2919.1,0.0051376]
[1766760912177,0.17134,2920.2,2918.9,0.00400745]
[1766760912871,5.56834,2920.2,2918.9,0.00400745]
[1766760913085,0.17134,2920.2,2918.9,0.00400745]
[1766760913269,5.4,2920.5,2918.9,0.00400745]
[1766760913470,5.401,2920.5,2918.9,0.00400745]
[1766760913866,0.0051376,2920.7,2916.9,0.17153]
[1766760913867,0.17137,2919.7,2916.9,0.17153]
[1766760914067,0.17137,2919.7,2917.1,1.30711403]
[1766760914271,0.17137,2919.7,2917.7,4.47598096]
[1766760914466,0.17137,2919.6,2917.0,0.17152]
[1766760914673,1.30711403,2919.8,2917.0,0.17152]
[1766760914873,5.402,2919.9,2917.3,4.47598096]
[1766760915074,0.0051376,2918.9,2918.3,0.0051376]
[1766760915274,0.00914554,2918.9,2918.3,0.0051376]
[1766760915878,0.00914554,2918.9,2917.0,0.00346665]
[1766760916675,0.00914554,2918.9,2917.4,4.44893577]
[1766760916967,0.00914554,2918.9,2916.1,0.173]
[1766760916968,0.0051376,2918.4,2916.9,4.44893577]
[1766760917372,0.0051376,2918.4,2917.3,4.47800346]
[1766760917674,0.0051376,2918.4,2917.3,0.00331483]
[1766760917882,0.00400794,2918.9,2917.4,4.47800346]
[1766760918973,0.17146,2918.1,2917.3,0.00331483]
[1766760919178,0.17147,2917.9,2915.6,0.1716]
[1766760919377,0.17148,2917.8,2915.6,0.1716]
[1766760919680,1.30711403,2917.7,2915.7,4.50817234]
[1766760919979,5.403,2917.8,2915.7,4.50817234]
[1766760919980,0.0051376,2917.0,2915.7,4.50817234]
[1766760920169,0.0051376,2917.0,2915.7,0.00270844]
[1766760920781,0.0051376,2917.0,2915.8,4.42995043]
[1766760921384,0.0051376,2917.0,2915.7,0.00270844]
[1766760921778,0.0051376,2917.0,2915.8,4.4554636]
[1766760922378,0.0051376,2917.0,2915.7,0.00270844]
[1766760922772,5.404,2918.5,2915.8,4.49267377]
[1766760922968,0.17146,2918.1,2916.0,0.17158]
[1766760923474,0.17147,2917.9,2915.8,4.49267377]
[1766760923669,1.30711403,2918.1,2915.8,4.49267377]
[1766760923877,0.0051376,2917.1,2916.6,0.0051376]
[1766760924278,0.17145,2918.2,2916.6,0.0051376]
[1766760924675,0.17541794,2918.9,2916.6,0.0051376]
[1766760924879,1.30711403,2918.4,2916.6,0.0051376]
[1766760925082,1.30711403,2917.4,2915.7,0.00270844]
[1766760925284,0.17156,2916.4,2914.5,0.01]
[1766760925576,0.17151,2917.2,2914.9,5.85086323]
[1766760925983,0.17152,2917.1,2914.6,5.51266]
[1766760926174,0.0051376,2916.1,2915.6,0.0051376]
[1766760927471,0.0051376,2916.1,2915.6,7.6e-06]
[1766760927783,0.0051376,2916.1,2914.6,0.00352679]
[1766760928279,0.0051376,2916.1,2914.8,1.30711403]
[1766760928581,0.17153,2917.0,2914.9,4.41827185]
[1766760928985,0.17153,2917.0,2914.8,4.41827185]
[1766760929180,0.17154,2916.7,2914.7,4.47136395]
[1766760929374,0.0051376,2916.0,2915.4,0.0051376]
[1766760929978,0.00384696,2917.1,2915.4,0.0051376]
[1766760930487,0.17155,2916.6,2915.4,0.0051376]
[1766760931083,0.17158,2916.1,2914.6,0.00352679]
[1766760931383,0.17161,2915.6,2914.5,0.00256867]
[1766760931583,0.17161,2915.6,2912.8,1.30711403]
[1766760931584,0.17164,2915.1,2912.6,2.39111403]
[1766760931785,0.17164,2915.1,2912.6,1.30711403]
[1766760931982,0.17166,2914.8,2912.3,1.801]
[1766760932182,1.30711403,2915.4,2912.2,1.30711403]
[1766760932183,0.00514659,2914.7,2914.1,0.00514659]
[1766760932487,0.17161,2915.5,2914.1,0.00773728]
[1766760932790,1.30711403,2916.4,2914.1,0.00773728]
[1766760933089,0.17161,2915.7,2914.1,0.00773728]
[1766760933290,0.17161,2915.6,2914.1,0.00773728]
[1766760933492,0.00514659,2915.1,2914.1,0.00773728]
[1766760934387,0.00514659,2915.1,2912.6,1.47889403]
[1766760934583,0.17162,2915.5,2913.1,1.30711403]
[1766760934785,0.17158,2916.1,2914.1,1.30711403]
[1766760934985,1.30711403,2917.6,2912.2,0.27502126]
[1766760935187,1.30711403,2916.6,2914.2,8.24686966]
[1766760935378,0.17149,2917.5,2913.7,2.93563368]
[1766760935594,0.17161,2915.6,2913.7,2.38583368]
[1766760935781,0.17165,2915.0,2912.3,0.72381905]
[1766760935986,0.00330633,2915.0,2912.3,0.00423817]
[1766760936185,0.17166,2914.7,2912.5,4.56055435]
[1766760936485,0.17166,2914.7,2912.6,3.7893692]
[1766760936693,0.00514659,2913.9,2913.4,0.00514659]
[1766760937786,0.00514659,2913.9,2912.6,4.56055435]
[1766760938089,0.17168,2914.4,2912.3,0.00423817]
[1766760938291,0.00330633,2915.0,2912.5,1.30711403]
[1766760938687,0.00330633,2915.0,2912.6,8.09558786]
[1766760938887,0.00514659,2914.1,2913.5,0.00514659]
[1766760939288,0.00330633,2915.0,2913.5,0.00514659]
[1766760939890,0.17165,2914.9,2913.5,0.00514659]
[1766760940286,0.00514659,2914.5,2913.5,0.00514659]
[1766760941888,0.00514659,2914.5,2913.5,2.158e-05]
[1766760941889,0.17168,2914.4,2913.5,2.158e-05]
[1766760942290,0.17168,2914.4,2912.3,0.00423817]
[1766760942291,0.00514659,2914.5,2912.3,0.00423817]
[1766760942495,0.1717,2914.0,2912.3,0.00423817]
[1766760942897,0.17171,2913.9,2912.3,0.00423817]
[1766760943290,0.17171,2913.9,2912.8,0.00514659]
[1766760943494,0.17171,2913.8,2912.8,4.659e-05]
[1766760943900,0.17173,2913.6,2912.8,4.659e-05]
[1766760944098,0.17173,2913.6,2912.3,0.00423817]
[1766760944296,0.17173,2913.5,2912.3,0.00423817]
[1766760944501,1.30711403,2913.8,2912.3,0.00423817]
[1766760944794,0.17173,2913.6,2912.3,0.00423817]
[1766760945200,0.17173,2913.5,2912.3,0.00423817]
[1766760946002,0.17174,2913.4,2912.3,0.00423817]
[1766760946197,0.17176,2913.1,2910.5,2.197]
[1766760946496,0.17176,2913.1,2910.8,3.76355674]
[1766760946693,0.17176,2913.1,2911.1,4.52996571]
[1766760946887,0.17176,2913.1,2910.5,0.17191]
[1766760947091,0.17449803,2912.9,2910.5,0.1719]
[1766760947288,0.17449803,2912.9,2910.9,4.48180467]
[1766760947488,0.00272803,2912.9,2911.4,0.00514659]
[1766760947896,40.8,2914.4,2911.5,4.48180467]
[1766760948092,0.17177,2912.8,2911.5,8.33541808]
[1766760948294,1.30711403,2912.9,2910.4,0.17191]
[1766760948496,0.17179,2912.5,2911.4,0.00514659]
[1766760948906,0.17576187,2912.5,2911.4,0.00514659]
[1766760949098,0.00397187,2912.5,2911.4,0.00514659]
[1766760949395,0.00514659,2912.2,2911.4,0.00514659]
[1766760949696,0.17172,2913.6,2911.4,0.00514659]
[1766760949897,1.30711403,2913.7,2911.5,4.51023928]
[1766760950196,8.815,2914.4,2911.4,0.00514659]
[1766760950197,1.30711403,2913.2,2911.4,0.00514659]
[1766760950401,0.17177,2912.9,2911.4,0.00514659]
[1766760950802,0.00514659,2912.4,2911.4,0.00514659]
[1766760951793,0.17694659,2912.4,2911.4,0.00514659]
[1766760952197,0.00514659,2912.4,2911.4,0.00514659]
[1766760952402,0.00514659,2912.4,2911.5,4.51438101]
[1766760952602,0.00514659,2912.4,2911.4,0.00514659]
[1766760953407,0.00514659,2912.4,2911.5,4.37245268]
[1766760953909,0.0042078,2912.9,2911.5,4.37245268]
[1766760954111,0.0042078,2912.9,2911.4,0.00514659]
[1766760954607,0.0042078,2912.9,2911.5,4.42327622]
[1766760954999,0.00514659,2912.5,2911.5,4.42327622]
[1766760956311,0.00514659,2912.5,2911.5,4.41303226]
[1766760956502,0.0042078,2912.9,2911.5,4.41303226]
[1766760956898,0.0042078,2912.9,2911.4,0.00514659]
[1766760957806,0.0042078,2912.9,2911.5,4.43792883]
[1766760958312,0.0042078,2912.9,2911.4,0.00514659]
[1766760959111,0.0042078,2912.9,2911.6,4.42235442]
[1766760959314,0.16568832,2913.0,2911.4,0.00514659]
[1766760959516,0.17172,2913.7,2911.4,0.00514659]
[1766760959807,0.17172,2913.7,2911.6,4.60645898]
[1766760960010,4.90779106,2914.5,2911.6,0.17184]
[1766760960310,0.17172,2913.7,2911.7,4.43461898]
[1766760960510,0.17172,2913.7,2911.8,5.337]
[1766760960713,0.17174,2913.3,2911.7,8.2455219]
[1766760961007,0.17174,2913.3,2911.7,5.338]
[1766760961207,0.17171,2913.9,2911.7,5.338]
[1766760961412,0.17171,2913.9,2911.9,4.62728164]
[1766760961613,0.17171,2913.9,2911.9,5.50982]
[1766760961808,0.17171,2913.9,2912.0,4.43622208]
[1766760962199,0.17171,2913.8,2911.9,5.339]
[1766760962404,0.17171,2913.8,2912.6,0.00514659]
[1766760962606,0.17171,2913.8,2912.6,0.00845527]
[1766760963204,0.17550035,2914.5,2912.6,0.00845527]
[1766760963414,0.8615498,2914.4,2912.6,0.00845527]
[1766760963614,0.17550035,2914.5,2912.6,0.00845527]
[1766760963815,0.17550035,2914.5,2912.7,4.42816051]
[1766760964016,0.1717,2914.1,2912.6,0.00845527]
[1766760964316,0.1717,2914.1,2912.7,4.41038111]
[1766760964616,0.00383035,2914.5,2912.6,0.00845527]
[1766760964617,0.1717,2914.0,2912.6,0.00845527]
[1766760964912,0.00383035,2914.5,2912.6,0.00845527]
[1766760965215,0.17168,2914.4,2912.6,0.00845527]
[1766760966114,0.17168,2914.4,2912.7,8.39499367]
[1766760966315,0.17168,2914.4,2912.7,4.41038111]
[1766760966613,0.00383035,2914.5,2912.7,4.41038111]
[1766760966811,0.00383035,2914.5,2912.8,0.17177]
[1766760967113,0.00383035,2914.5,2912.9,4.52168783]
[1766760967321,0.00383035,2914.5,2913.1,0.17175]
[1766760967620,0.17162,2915.5,2912.9,8.14926308]
[1766760967806,0.08648233,2915.9,2913.9,0.00514659]
[1766760968122,0.8635584,2915.8,2913.9,0.00514659]
[1766760968316,40.8,2916.5,2913.9,0.00514659]
[1766760968512,0.17159,2916.0,2914.0,9.72926007]
[1766760968913,0.17159,2916.0,2914.0,9.90096007]
[1766760969122,0.0034948,2916.5,2914.1,3.73750555]
[1766760969316,0.0034948,2916.5,2914.2,5.336]
[1766760969617,0.17158,2916.2,2914.2,4.48152322]
[1766760969919,0.17158,2916.2,2914.3,5.336]
[1766760970124,0.0034948,2916.5,2914.3,3.84191523]
[1766760970313,0.17157,2916.2,2914.4,5.336]
[1766760970514,0.0034948,2916.5,2914.4,5.336]
[1766760970723,0.0034948,2916.5,2914.5,4.50321198]
[1766760971019,0.0034948,2916.5,2914.5,8.08258306]
[1766760971220,0.0034948,2916.5,2914.6,5.335]
[1766760971421,0.0034948,2916.5,2914.7,0.17166]
[1766760971720,0.0034948,2916.5,2914.9,0.17164]
[1766760972021,0.0034948,2916.5,2915.4,0.00514659]
[1766760972315,0.0034948,2916.5,2915.4,5.34114659]
[1766760972815,0.0034948,2916.5,2915.4,0.00514659]
[1766760973221,0.0034948,2916.5,2915.5,4.47542643]
[1766760973517,0.1715,2917.4,2915.6,5.335]
[1766760973724,0.1715,2917.4,2915.7,5.335]
[1766760973916,0.1715,2917.4,2915.4,0.00514659]
[1766760974122,0.1715,2917.4,2915.5,5.335]
[1766760974324,0.17545059,2917.4,2915.5,9.82006991]
[1766760974522,0.17545059,2917.4,2915.5,5.335]
[1766760974719,0.00395059,2917.4,2915.6,4.52690775]
[1766760975628,0.00395059,2917.4,2915.7,4.826]
[1766760975819,0.17151,2917.2,2915.4,0.00514659]
[1766760976128,0.17151,2917.2,2915.5,0.307]
[1766760976327,0.17151,2917.2,2915.6,5.334]
[1766760977020,0.17151,2917.2,2915.7,5.333]
[1766760977520,0.17151,2917.2,2915.5,4.361184]
[1766760977721,0.17151,2917.2,2915.6,5.333]
[1766760978229,0.00395059,2917.4,2915.6,5.333]
[1766760978816,0.00395059,2917.4,2915.4,0.00514659]
[1766760979014,0.17152,2917.0,2915.4,0.00514659]
[1766760979220,0.17153,2916.9,2915.4,0.00514659]
[1766760979726,0.17155,2916.6,2915.4,0.00514659]
[1766760980424,0.17156,2916.5,2915.4,0.00514659]
[1766760980631,0.17156,2916.4,2915.4,0.00514659]
[1766760981023,0.17159,2915.9,2914.7,0.00357297]
[1766760981224,0.1716,2915.8,2914.7,0.00357297]
[1766760981618,1.49379106,2916.6,2912.7,1.44022459]
[1766760981821,0.17159,2915.9,2912.8,2.935]
[1766760982032,0.17159,2915.9,2914.1,0.00514659]
[1766760982228,0.17159,2915.9,2914.2,5.33]
[1766760982535,0.17159,2915.9,2914.1,0.00514659]
[1766760982731,0.17155,2916.5,2914.3,5.33]
[1766760982934,0.17157,2916.2,2914.4,5.33]
[1766760983232,0.17157,2916.2,2915.0,0.00514659]
[1766760984635,0.17153,2916.9,2915.1,4.49455109]
[1766760984836,0.17156,2916.5,2915.1,4.49455109]
[1766760985032,0.17156,2916.4,2915.0,0.00514659]
[1766760985227,0.17157,2916.3,2915.0,0.00514659]
[1766760985925,0.17157,2916.3,2914.1,0.00430002]
[1766760985926,1.49379106,2916.3,2914.1,0.00430002]
[1766760986126,4.90779106,2916.3,2914.1,0.00430002]
[1766760986836,0.17163,2915.3,2914.1,0.00430002]
[1766760987027,0.17163,2915.2,2914.1,0.00430002]
[1766760987229,0.17164,2915.0,2913.0,0.959]
[1766760987536,0.17167,2914.6,2912.8,4.53825263]
[1766760987732,0.17163,2915.2,2913.1,4.53825263]
[1766760987935,0.00514659,2914.4,2913.9,0.00514659]
[1766760988327,0.00514659,2914.4,2913.9,0.00853976]
[1766760989035,0.00514659,2914.4,2912.9,4.53825263]
[1766760989235,0.17682659,2914.4,2912.3,5.328]
[1766760989631,0.1717,2914.1,2912.4,4.53982187]
[1766760989934,0.1717,2914.1,2911.5,0.17185]
[1766760990131,0.1717,2914.1,2912.5,0.00514659]
[1766760990329,0.27521251,2914.4,2912.5,0.00514659]
[1766760990540,0.27521251,2914.4,2911.5,1.92834617]
[1766760990541,0.17172,2913.7,2911.5,1.92834617]
[1766760990835,0.17172,2913.6,2911.5,1.92834617]
[1766760991026,0.17172,2913.6,2911.8,4.53512945]
[1766760991231,0.17172,2913.6,2911.5,0.00334617]
[1766760991433,0.17173,2913.5,2911.5,0.00334617]
[1766760991637,0.00514659,2912.8,2912.2,0.00514659]
[1766760991843,0.00910517,2912.8,2912.2,0.00514659]
[1766760992232,1.49379106,2915.2,2912.2,0.00514659]